[Event "Early-Titled-Tuesday-Blitz-February-20-2024"]
[Site "Chess.com"]
[Date "2024.02.20"]
[Round "3"]
[White "Angry_Twin"]
[Black "bipe137"]
[Result "1-0"]
[WhiteElo "2981"]
[BlackElo "2518"]
[TimeControl "180+1"]
[EndTime "8:29:57 PST"]
[Termination "Angry_Twin won by resignation"]

1. e4 {[%clk 0:03:00.9]} 1... c5 {[%clk 0:02:57.9]} 2. Nf3 {[%clk 0:03:01.1]}
2... e6 {[%clk 0:02:57.6]} 3. d4 {[%clk 0:03:01]} 3... cxd4 {[%clk 0:02:56.5]}
4. Nxd4 {[%clk 0:03:01.9]} 4... Nc6 {[%clk 0:02:56.6]} 5. Nc3 {[%clk 0:03:02]}
5... Nf6 {[%clk 0:02:56.6]} 6. Ndb5 {[%clk 0:02:59.9]} 6... d6 {[%clk
0:02:56.2]} 7. Bf4 {[%clk 0:02:59.6]} 7... e5 {[%clk 0:02:56.6]} 8. Bg5 {[%clk
0:03:00.2]} 8... a6 {[%clk 0:02:57]} 9. Na3 {[%clk 0:03:00.3]} 9... Be6 {[%clk
0:02:57.3]} 10. Nc4 {[%clk 0:02:55.5]} 10... Rb8 {[%clk 0:02:56.7]} 11. Ne3
{[%clk 0:02:49.5]} 11... Be7 {[%clk 0:02:56]} 12. Bxf6 {[%clk 0:02:45.2]} 12...
Bxf6 {[%clk 0:02:56.9]} 13. Ncd5 {[%clk 0:02:45.5]} 13... Bg5 {[%clk 0:02:56.7]}
14. Bd3 {[%clk 0:02:40.5]} 14... Ne7 {[%clk 0:02:51.1]} 15. h4 {[%clk
0:02:24.4]} 15... Bxe3 {[%clk 0:02:48.6]} 16. Nxe3 {[%clk 0:02:24]} 16... d5
{[%clk 0:02:43.2]} 17. O-O {[%clk 0:02:23.3]} 17... O-O {[%clk 0:02:38.7]} 18.
exd5 {[%clk 0:02:22.2]} 18... Nxd5 {[%clk 0:02:37.7]} 19. Qh5 {[%clk 0:02:22]}
19... g6 {[%clk 0:02:18]} 20. Qxe5 {[%clk 0:02:21.9]} 20... Nxe3 {[%clk
0:02:18.3]} 21. Qxe3 {[%clk 0:02:22.2]} 21... Qxh4 {[%clk 0:02:17.7]} 22. Rfe1
{[%clk 0:02:07.7]} 22... Rfd8 {[%clk 0:02:05.9]} 23. Qb6 {[%clk 0:02:01.8]}
23... Bd5 {[%clk 0:02:00.6]} 24. Re5 {[%clk 0:01:40.8]} 24... Qg4 {[%clk
0:01:49.7]} 25. Bf1 {[%clk 0:01:40.7]} 25... Bc6 {[%clk 0:01:41.8]} 26. Qe3
{[%clk 0:01:35.5]} 26... Re8 {[%clk 0:01:38.3]} 27. f3 {[%clk 0:01:34.6]} 27...
Qg3 {[%clk 0:01:28.7]} 28. Re1 {[%clk 0:01:28.7]} 28... Qh4 {[%clk 0:01:15.7]}
29. Qf2 {[%clk 0:01:17.7]} 29... Qf6 {[%clk 0:01:03.1]} 30. Rxe8+ {[%clk
0:01:17.8]} 30... Rxe8 {[%clk 0:01:03.4]} 31. Rxe8+ {[%clk 0:01:18.4]} 31...
Bxe8 {[%clk 0:01:04.1]} 32. c3 {[%clk 0:01:19]} 32... Bc6 {[%clk 0:00:59.9]} 33.
Qc5 {[%clk 0:01:16.7]} 33... h5 {[%clk 0:00:57.7]} 34. a4 {[%clk 0:00:52.5]}
34... h4 {[%clk 0:00:46.3]} 35. b4 {[%clk 0:00:51.9]} 35... h3 {[%clk
0:00:41.4]} 36. b5 {[%clk 0:00:34.9]} 36... hxg2 {[%clk 0:00:41.2]} 37. Bxg2
{[%clk 0:00:34.3]} 37... axb5 {[%clk 0:00:36]} 38. axb5 {[%clk 0:00:34.2]} 38...
Bxf3 {[%clk 0:00:31.5]} 39. Qf2 {[%clk 0:00:33.3]} 39... Qxc3 {[%clk 0:00:26]}
40. Bxf3 {[%clk 0:00:32.2]} 40... Qc1+ {[%clk 0:00:24.3]} 41. Qf1 {[%clk
0:00:24.9]} 41... Qg5+ {[%clk 0:00:21]} 42. Kh1 {[%clk 0:00:23.5]} 42... b6
{[%clk 0:00:21.1]} 43. Qd3 {[%clk 0:00:21.4]} 43... Qg3 {[%clk 0:00:18.5]} 44.
Qe4 {[%clk 0:00:19.8]} 44... Qh3+ {[%clk 0:00:17.5]} 45. Kg1 {[%clk 0:00:19.5]}
45... Qg3+ {[%clk 0:00:17.4]} 46. Bg2 {[%clk 0:00:20]} 46... Qb3 {[%clk
0:00:12.9]} 47. Qe8+ {[%clk 0:00:17.1]} 47... Kh7 {[%clk 0:00:13.1]} 48. Qe5
{[%clk 0:00:16.3]} 48... Qd1+ {[%clk 0:00:12.5]} 49. Bf1 {[%clk 0:00:16.3]}
49... Qg4+ {[%clk 0:00:12.2]} 50. Kf2 {[%clk 0:00:16.7]} 50... Qh4+ {[%clk
0:00:11.9]} 51. Qg3 {[%clk 0:00:17.1]} 51... Qd4+ {[%clk 0:00:11.9]} 52. Qe3
{[%clk 0:00:17.5]} 52... Qb2+ {[%clk 0:00:12]} 53. Kg3 {[%clk 0:00:16.8]} 53...
Qf6 {[%clk 0:00:09.9]} 54. Bd3 {[%clk 0:00:12.8]} 54... Kg7 {[%clk 0:00:09.5]}
55. Qe4 {[%clk 0:00:10.2]} 55... Qd6+ {[%clk 0:00:09.5]} 56. Kf3 {[%clk
0:00:10.4]} 56... Qf6+ {[%clk 0:00:09.4]} 57. Ke3 {[%clk 0:00:10.2]} 57... Qd6
{[%clk 0:00:09.2]} 58. Qd4+ {[%clk 0:00:10.6]} 58... Qxd4+ {[%clk 0:00:08.6]}
59. Kxd4 {[%clk 0:00:11.5]} 59... g5 {[%clk 0:00:05.7]} 60. Kd5 {[%clk
0:00:11.5]} 60... g4 {[%clk 0:00:04.8]} 61. Bf5 {[%clk 0:00:11.5]} 61... g3
{[%clk 0:00:04.3]} 62. Bh3 {[%clk 0:00:12.2]} 62... f5 {[%clk 0:00:03]} 63. Ke5
{[%clk 0:00:12.4]} 1-0

[Event "Early-Titled-Tuesday-Blitz-February-20-2024"]
[Site "Chess.com"]
[Date "2024.02.20"]
[Round "3"]
[White "SaqoChess_Twitch"]
[Black "MVM2008"]
[Result "0-1"]
[WhiteElo "2650"]
[BlackElo "2476"]
[TimeControl "180+1"]
[EndTime "8:29:58 PST"]
[Termination "MVM2008 won by checkmate"]

1. d4 {[%clk 0:03:00.9]} 1... Nf6 {[%clk 0:02:59.3]} 2. c4 {[%clk 0:03:00.9]}
2... g6 {[%clk 0:02:58.9]} 3. Nc3 {[%clk 0:03:01.5]} 3... d6 {[%clk 0:02:59.2]}
4. Nf3 {[%clk 0:03:01]} 4... Bg7 {[%clk 0:02:59.2]} 5. g3 {[%clk 0:03:00.2]}
5... Nc6 {[%clk 0:02:58.3]} 6. Bg2 {[%clk 0:02:57.9]} 6... O-O {[%clk
0:02:58.3]} 7. O-O {[%clk 0:02:57.9]} 7... e5 {[%clk 0:02:57.8]} 8. dxe5 {[%clk
0:02:57.6]} 8... dxe5 {[%clk 0:02:56.9]} 9. Qc2 {[%clk 0:02:56.7]} 9... Nd4
{[%clk 0:02:52.1]} 10. Nxd4 {[%clk 0:02:55.8]} 10... exd4 {[%clk 0:02:53]} 11.
Nd5 {[%clk 0:02:54.7]} 11... c6 {[%clk 0:02:50.5]} 12. Nxf6+ {[%clk 0:02:54.5]}
12... Bxf6 {[%clk 0:02:51.4]} 13. Rd1 {[%clk 0:02:54.4]} 13... Bf5 {[%clk
0:02:49.4]} 14. Be4 {[%clk 0:02:42.1]} 14... Bg4 {[%clk 0:02:37]} 15. Bh6 {[%clk
0:02:37.4]} 15... Re8 {[%clk 0:02:36]} 16. Bf3 {[%clk 0:02:20.2]} 16... Bxf3
{[%clk 0:02:17.4]} 17. exf3 {[%clk 0:02:20.3]} 17... Qa5 {[%clk 0:02:06.6]} 18.
Kg2 {[%clk 0:02:08.6]} 18... Re6 {[%clk 0:01:58.8]} 19. Bd2 {[%clk 0:01:57.9]}
19... Qc7 {[%clk 0:01:48.5]} 20. Re1 {[%clk 0:01:57.5]} 20... Rae8 {[%clk
0:01:48.1]} 21. Rxe6 {[%clk 0:01:57.2]} 21... Rxe6 {[%clk 0:01:49]} 22. Re1
{[%clk 0:01:56.4]} 22... Rxe1 {[%clk 0:01:46]} 23. Bxe1 {[%clk 0:01:57.3]} 23...
Qe5 {[%clk 0:01:46.2]} 24. Qe4 {[%clk 0:01:40.4]} 24... c5 {[%clk 0:01:05.6]}
25. Bd2 {[%clk 0:01:31.9]} 25... b6 {[%clk 0:00:50.5]} 26. Bf4 {[%clk
0:01:31.6]} 26... Qe6 {[%clk 0:00:24.7]} 27. b3 {[%clk 0:01:29.7]} 27... h5
{[%clk 0:00:20.5]} 28. Qa8+ {[%clk 0:01:27.2]} 28... Kh7 {[%clk 0:00:17.6]} 29.
Qxa7 {[%clk 0:01:27.8]} 29... d3 {[%clk 0:00:13.8]} 30. h4 {[%clk 0:01:27.4]}
30... Bc3 {[%clk 0:00:09.3]} 31. Qb8 {[%clk 0:01:20.5]} 31... d2 {[%clk
0:00:05.8]} 32. Qd8 {[%clk 0:01:20.2]} 32... Qe2 {[%clk 0:00:03.8]} 33. Bxd2
{[%clk 0:00:59.8]} 33... Bxd2 {[%clk 0:00:04.7]} 34. Qf6 {[%clk 0:01:00.2]}
34... Qe6 {[%clk 0:00:04.7]} 35. Qd8 {[%clk 0:00:57.3]} 35... Bh6 {[%clk
0:00:04.1]} 36. Qd3 {[%clk 0:00:56.4]} 36... Bg7 {[%clk 0:00:04.4]} 37. a4
{[%clk 0:00:56]} 37... Qe5 {[%clk 0:00:04.2]} 38. Qd7 {[%clk 0:00:55.7]} 38...
Qb2 {[%clk 0:00:02.6]} 39. Qxf7 {[%clk 0:00:42.8]} 39... Qxb3 {[%clk 0:00:02.6]}
40. f4 {[%clk 0:00:42.8]} 40... Qxa4 {[%clk 0:00:02.4]} 41. f5 {[%clk
0:00:43.4]} 41... Qc6+ {[%clk 0:00:02.4]} 42. Kh2 {[%clk 0:00:42.7]} 42... gxf5
{[%clk 0:00:02.4]} 43. Qxh5+ {[%clk 0:00:42.8]} 43... Kg8 {[%clk 0:00:01.8]} 44.
Qxf5 {[%clk 0:00:43.7]} 44... Qf6 {[%clk 0:00:02.2]} 45. Qc8+ {[%clk 0:00:43.9]}
45... Kh7 {[%clk 0:00:02.4]} 46. Kg2 {[%clk 0:00:44.1]} 46... Qg6 {[%clk
0:00:02.6]} 47. Qb7 {[%clk 0:00:43.2]} 47... Kh6 {[%clk 0:00:02.5]} 48. f3
{[%clk 0:00:40.5]} 48... Bd4 {[%clk 0:00:02.1]} 49. g4 {[%clk 0:00:39.7]} 49...
Qc2+ {[%clk 0:00:02.6]} 50. Kh3 {[%clk 0:00:38.5]} 50... Qg6 {[%clk 0:00:03.1]}
51. g5+ {[%clk 0:00:31.2]} 51... Kh5 {[%clk 0:00:03.4]} 52. Qc8 {[%clk 0:00:32]}
52... Qd3 {[%clk 0:00:02.5]} 53. Qe8+ {[%clk 0:00:23.8]} 53... Qg6 {[%clk
0:00:03]} 54. Qd7 {[%clk 0:00:24.6]} 54... Qd3 {[%clk 0:00:02.5]} 55. Qg4+
{[%clk 0:00:16.9]} 55... Kg6 {[%clk 0:00:02.6]} 56. h5+ {[%clk 0:00:17.8]} 56...
Kg7 {[%clk 0:00:02.2]} 57. Qd7+ {[%clk 0:00:18.7]} 57... Kf8 {[%clk 0:00:02.4]}
58. Qd8+ {[%clk 0:00:17.7]} 58... Kf7 {[%clk 0:00:02.9]} 59. Qd7+ {[%clk
0:00:17.8]} 59... Kf8 {[%clk 0:00:02.4]} 60. Kg4 {[%clk 0:00:16.6]} 60... Qe2
{[%clk 0:00:01.7]} 61. Qc8+ {[%clk 0:00:12.4]} 61... Ke7 {[%clk 0:00:01.9]} 62.
Qb7+ {[%clk 0:00:11.8]} 62... Kd8 {[%clk 0:00:01.9]} 63. h6 {[%clk 0:00:11.2]}
63... Qg2+ {[%clk 0:00:01.7]} 64. Kf5 {[%clk 0:00:11.3]} 64... Qh3+ {[%clk
0:00:01.9]} 65. Kg6 {[%clk 0:00:11.2]} 65... Qe6+ {[%clk 0:00:02.5]} 66. Kh7
{[%clk 0:00:10.6]} 66... Qf5+ {[%clk 0:00:01.5]} 67. g6 {[%clk 0:00:11.1]} 67...
Qf6 {[%clk 0:00:01.9]} 68. Qf7 {[%clk 0:00:06.4]} 68... Qh8# {[%clk 0:00:01.9]}
0-1

[Event "Early-Titled-Tuesday-Blitz-February-20-2024"]
[Site "Chess.com"]
[Date "2024.02.20"]
[Round "3"]
[White "TimAina"]
[Black "Bigfish1995"]
[Result "1-0"]
[WhiteElo "2794"]
[BlackElo "3166"]
[TimeControl "180+1"]
[EndTime "8:30:12 PST"]
[Termination "TimAina won by resignation"]

1. e4 {[%clk 0:03:00.9]} 1... c6 {[%clk 0:02:58.6]} 2. d4 {[%clk 0:03:01]} 2...
d5 {[%clk 0:02:59.2]} 3. e5 {[%clk 0:03:01.6]} 3... Bf5 {[%clk 0:02:59]} 4. h4
{[%clk 0:03:02.2]} 4... a6 {[%clk 0:02:55.1]} 5. g4 {[%clk 0:03:01.3]} 5... Bd7
{[%clk 0:02:54]} 6. h5 {[%clk 0:02:51.5]} 6... c5 {[%clk 0:02:54.3]} 7. dxc5
{[%clk 0:02:35.9]} 7... Nc6 {[%clk 0:02:52]} 8. Bf4 {[%clk 0:02:12.1]} 8... e6
{[%clk 0:02:26.8]} 9. c3 {[%clk 0:02:12.3]} 9... Bxc5 {[%clk 0:02:25.3]} 10. Nf3
{[%clk 0:02:12.4]} 10... f6 {[%clk 0:02:22.5]} 11. b4 {[%clk 0:02:04.8]} 11...
Bb6 {[%clk 0:02:20.5]} 12. g5 {[%clk 0:01:26.4]} 12... fxe5 {[%clk 0:02:14.6]}
13. h6 {[%clk 0:00:57.8]} 13... Nxh6 {[%clk 0:01:56.5]} 14. Nxe5 {[%clk
0:00:35.7]} 14... Nxe5 {[%clk 0:01:56.2]} 15. gxh6 {[%clk 0:00:36.5]} 15... Qf6
{[%clk 0:01:45.5]} 16. hxg7 {[%clk 0:00:36.8]} 16... Rg8 {[%clk 0:01:40.2]} 17.
Qh5+ {[%clk 0:00:35.2]} 17... Nf7 {[%clk 0:01:39.8]} 18. Bg3 {[%clk 0:00:25]}
18... Rxg7 {[%clk 0:01:38.8]} 19. Be2 {[%clk 0:00:19.2]} 19... O-O-O {[%clk
0:01:26.5]} 20. Bh4 {[%clk 0:00:19.2]} 20... Qf4 {[%clk 0:01:07.5]} 21. Nd2
{[%clk 0:00:17.6]} 21... Rdg8 {[%clk 0:01:01.2]} 22. O-O-O {[%clk 0:00:17.9]}
22... Nd8 {[%clk 0:00:37.1]} 23. Bg3 {[%clk 0:00:18.3]} 23... Rxg3 {[%clk
0:00:32.1]} 24. fxg3 {[%clk 0:00:19.2]} 24... Rxg3 {[%clk 0:00:32]} 25. Kc2
{[%clk 0:00:19.3]} 25... Ba4+ {[%clk 0:00:29.9]} 26. Nb3 {[%clk 0:00:19.7]}
26... Qe4+ {[%clk 0:00:20.5]} 27. Bd3 {[%clk 0:00:20.2]} 27... Qf4 {[%clk
0:00:16.7]} 28. Kb1 {[%clk 0:00:20.1]} 28... Kb8 {[%clk 0:00:13.6]} 29. Qh4
{[%clk 0:00:18.2]} 29... Qc7 {[%clk 0:00:13.6]} 30. Qxh7 {[%clk 0:00:14]} 30...
Qxc3 {[%clk 0:00:12.8]} 31. Bc2 {[%clk 0:00:12.9]} 31... Qxb4 {[%clk 0:00:12.8]}
32. Qh8 {[%clk 0:00:11.9]} 32... Bc7 {[%clk 0:00:12.5]} 33. Rh4 {[%clk
0:00:11.2]} 33... Qb5 {[%clk 0:00:11.6]} 34. Qd4 {[%clk 0:00:11.3]} 34... Bxb3
{[%clk 0:00:11.5]} 35. axb3 {[%clk 0:00:12.2]} 35... Rg8 {[%clk 0:00:06.1]} 36.
Rh7 {[%clk 0:00:12.5]} 36... Nc6 {[%clk 0:00:05.6]} 37. Qe3 {[%clk 0:00:12.1]}
37... Be5 {[%clk 0:00:05.9]} 38. Rh5 {[%clk 0:00:10.2]} 38... d4 {[%clk
0:00:04.6]} 39. Qd3 {[%clk 0:00:09.8]} 39... Qa5 {[%clk 0:00:05]} 40. Rf1 {[%clk
0:00:07.6]} 40... Nb4 {[%clk 0:00:04.7]} 41. Qe4 {[%clk 0:00:06.2]} 41... Rc8
{[%clk 0:00:05.3]} 42. Kc1 {[%clk 0:00:07.1]} 42... d3 {[%clk 0:00:04.9]} 43.
Qxe5+ {[%clk 0:00:07.2]} 43... Qxe5 {[%clk 0:00:03.9]} 44. Rxe5 {[%clk
0:00:08.1]} 44... Rxc2+ {[%clk 0:00:04.1]} 45. Kd1 {[%clk 0:00:07.9]} 45... Na2
{[%clk 0:00:05]} 46. Rf8+ {[%clk 0:00:05.9]} 46... Ka7 {[%clk 0:00:05.1]} 47.
Rd8 {[%clk 0:00:05.8]} 47... Nc3+ {[%clk 0:00:05.6]} 48. Ke1 {[%clk 0:00:06.5]}
48... Nd5 {[%clk 0:00:04.2]} 49. Rxe6 {[%clk 0:00:05]} 49... Nf4 {[%clk
0:00:04.4]} 50. Re4 {[%clk 0:00:04.6]} 50... Re2+ {[%clk 0:00:03]} 51. Rxe2
{[%clk 0:00:04.5]} 51... dxe2 {[%clk 0:00:03.9]} 52. Rd4 {[%clk 0:00:04.9]}
52... Ne6 {[%clk 0:00:04]} 53. Rd5 {[%clk 0:00:04.8]} 53... Nc7 {[%clk
0:00:04.2]} 54. Rd3 {[%clk 0:00:04.9]} 54... Kb6 {[%clk 0:00:04.1]} 55. Kxe2
{[%clk 0:00:05.3]} 55... Nb5 {[%clk 0:00:04.6]} 56. Kd2 {[%clk 0:00:06.2]} 56...
Kc5 {[%clk 0:00:05.1]} 57. Kc2 {[%clk 0:00:06.5]} 57... Nd4+ {[%clk 0:00:05.5]}
58. Kc3 {[%clk 0:00:06.8]} 58... Nc6 {[%clk 0:00:06.4]} 59. Rh3 {[%clk
0:00:06.8]} 59... a5 {[%clk 0:00:06.9]} 60. Rh5+ {[%clk 0:00:07.7]} 60... Kb6
{[%clk 0:00:06.7]} 61. Kc4 {[%clk 0:00:08.4]} 61... Ka6 {[%clk 0:00:07]} 62. Rh6
{[%clk 0:00:08.8]} 62... Kb6 {[%clk 0:00:07.2]} 63. Rg6 {[%clk 0:00:09.5]} 63...
Kc7 {[%clk 0:00:07]} 64. Kc5 {[%clk 0:00:10]} 64... b6+ {[%clk 0:00:03.9]} 65.
Kb5 {[%clk 0:00:08.6]} 65... Nd4+ {[%clk 0:00:04]} 66. Ka4 {[%clk 0:00:08.9]}
66... Kb7 {[%clk 0:00:03.7]} 67. Rd6 {[%clk 0:00:08.4]} 67... Nf5 {[%clk
0:00:02.5]} 68. Rd5 {[%clk 0:00:08.2]} 68... Ne3 {[%clk 0:00:03.1]} 69. Re5
{[%clk 0:00:06]} 69... Nd1 {[%clk 0:00:02.8]} 70. Re7+ {[%clk 0:00:04.8]} 70...
Ka6 {[%clk 0:00:03]} 71. b4 {[%clk 0:00:04.4]} 71... Nc3+ {[%clk 0:00:03]} 72.
Kb3 {[%clk 0:00:04.9]} 72... Nd5 {[%clk 0:00:03.9]} 73. bxa5 {[%clk 0:00:04.1]}
73... Nb4 {[%clk 0:00:04.8]} 74. Kxb4 {[%clk 0:00:04.2]} 74... bxa5+ {[%clk
0:00:04.3]} 75. Ka4 {[%clk 0:00:04.8]} 75... Kb6 {[%clk 0:00:03.8]} 76. Re5
{[%clk 0:00:05.7]} 1-0

[Event "Early-Titled-Tuesday-Blitz-February-20-2024"]
[Site "Chess.com"]
[Date "2024.02.20"]
[Round "3"]
[White "soloderisas"]
[Black "NastyaHn"]
[Result "0-1"]
[WhiteElo "2604"]
[BlackElo "2429"]
[TimeControl "180+1"]
[EndTime "8:30:13 PST"]
[Termination "NastyaHn won by checkmate"]

1. d4 {[%clk 0:03:00.9]} 1... e6 {[%clk 0:02:58.8]} 2. Nf3 {[%clk 0:03:01.5]}
2... d5 {[%clk 0:02:59.3]} 3. Bf4 {[%clk 0:03:01.9]} 3... Nf6 {[%clk 0:02:58.4]}
4. e3 {[%clk 0:03:02.4]} 4... c5 {[%clk 0:02:58.6]} 5. c3 {[%clk 0:03:02.3]}
5... Nc6 {[%clk 0:02:58.8]} 6. Nbd2 {[%clk 0:03:02.4]} 6... Qb6 {[%clk
0:02:58.4]} 7. Rb1 {[%clk 0:02:59.9]} 7... cxd4 {[%clk 0:02:56.1]} 8. exd4
{[%clk 0:02:59.5]} 8... Bd7 {[%clk 0:02:56.2]} 9. Bd3 {[%clk 0:02:58.9]} 9...
Be7 {[%clk 0:02:45.2]} 10. Ne5 {[%clk 0:02:54.6]} 10... O-O {[%clk 0:02:20.3]}
11. h4 {[%clk 0:02:52.4]} 11... Nxe5 {[%clk 0:02:17.2]} 12. dxe5 {[%clk
0:02:52.2]} 12... Ne8 {[%clk 0:02:16.7]} 13. Bxh7+ {[%clk 0:02:42.6]} 13... Kxh7
{[%clk 0:02:15.3]} 14. Qh5+ {[%clk 0:02:43.1]} 14... Kg8 {[%clk 0:02:13]} 15.
Nf3 {[%clk 0:02:44]} 15... Bb5 {[%clk 0:02:01.2]} 16. Rd1 {[%clk 0:02:28.7]}
16... Qa6 {[%clk 0:01:53.2]} 17. Bg5 {[%clk 0:01:46.1]} 17... Bd8 {[%clk
0:01:33.2]} 18. Rh3 {[%clk 0:01:39]} 18... Bd3 {[%clk 0:01:19.4]} 19. Bxd8
{[%clk 0:01:36.5]} 19... Rxd8 {[%clk 0:01:17]} 20. Rg3 {[%clk 0:01:31.4]} 20...
Bf5 {[%clk 0:00:46.9]} 21. Nd4 {[%clk 0:01:18.6]} 21... g6 {[%clk 0:00:19.6]}
22. Qg5 {[%clk 0:01:15.5]} 22... Ng7 {[%clk 0:00:19.3]} 23. h5 {[%clk
0:01:14.3]} 23... Rd7 {[%clk 0:00:11.8]} 24. h6 {[%clk 0:01:13.6]} 24... Ne8
{[%clk 0:00:10.9]} 25. h7+ {[%clk 0:01:05.5]} 25... Kh8 {[%clk 0:00:11.1]} 26.
Qh6 {[%clk 0:01:03.2]} 26... Ng7 {[%clk 0:00:11.3]} 27. Nf3 {[%clk 0:00:55.6]}
27... Qc4 {[%clk 0:00:08.4]} 28. Rd4 {[%clk 0:00:53.7]} 28... Qxa2 {[%clk
0:00:08.3]} 29. Rd2 {[%clk 0:00:39.8]} 29... Qb1+ {[%clk 0:00:08.2]} 30. Ke2
{[%clk 0:00:40]} 30... Qe4+ {[%clk 0:00:08.2]} 31. Kf1 {[%clk 0:00:40.4]} 31...
Qc4+ {[%clk 0:00:05.8]} 32. Kg1 {[%clk 0:00:40]} 32... Rdd8 {[%clk 0:00:03.6]}
33. Rd4 {[%clk 0:00:37.6]} 33... Qe2 {[%clk 0:00:03.4]} 34. Rg5 {[%clk 0:00:34]}
34... Be4 {[%clk 0:00:01.9]} 35. Rd2 {[%clk 0:00:32.4]} 35... Qc4 {[%clk
0:00:01.5]} 36. Nd4 {[%clk 0:00:32.1]} 36... Qa6 {[%clk 0:00:01.1]} 37. f3
{[%clk 0:00:32.2]} 37... Bf5 {[%clk 0:00:01.3]} 38. g4 {[%clk 0:00:32.3]} 38...
Bb1 {[%clk 0:00:01.6]} 39. Rf2 {[%clk 0:00:30.8]} 39... Bd3 {[%clk 0:00:01.9]}
40. f4 {[%clk 0:00:31]} 40... Qa1+ {[%clk 0:00:02.1]} 41. Kh2 {[%clk 0:00:31.3]}
41... Qe1 {[%clk 0:00:02.4]} 42. Qh4 {[%clk 0:00:30.6]} 42... Qe3 {[%clk
0:00:02.2]} 43. Qg3 {[%clk 0:00:30.4]} 43... Qxg3+ {[%clk 0:00:02.2]} 44. Kxg3
{[%clk 0:00:31.3]} 44... b5 {[%clk 0:00:02.5]} 45. Nc6 {[%clk 0:00:30.8]} 45...
Rd7 {[%clk 0:00:02.2]} 46. f5 {[%clk 0:00:30.8]} 46... exf5 {[%clk 0:00:02.6]}
47. gxf5 {[%clk 0:00:31.1]} 47... Nxf5+ {[%clk 0:00:03.1]} 48. Kf4 {[%clk
0:00:31.2]} 48... Ng7 {[%clk 0:00:02.2]} 49. Rg3 {[%clk 0:00:30]} 49... Ne6+
{[%clk 0:00:02.1]} 50. Ke3 {[%clk 0:00:30.4]} 50... Bf5 {[%clk 0:00:02.4]} 51.
Kd2 {[%clk 0:00:29.2]} 51... d4 {[%clk 0:00:02.3]} 52. Kc1 {[%clk 0:00:27.8]}
52... dxc3 {[%clk 0:00:02.3]} 53. Rxc3 {[%clk 0:00:28.7]} 53... Rc8 {[%clk
0:00:02.5]} 54. Rf1 {[%clk 0:00:26.6]} 54... Rdc7 {[%clk 0:00:02.9]} 55. Nb4
{[%clk 0:00:26.8]} 55... Rxc3+ {[%clk 0:00:03.2]} 56. bxc3 {[%clk 0:00:27.7]}
56... Rxc3+ {[%clk 0:00:03.5]} 57. Kd2 {[%clk 0:00:28.6]} 57... Rc4 {[%clk
0:00:03.7]} 58. Ra1 {[%clk 0:00:26.9]} 58... Kxh7 {[%clk 0:00:03.7]} 59. Na6
{[%clk 0:00:25.4]} 59... Rd4+ {[%clk 0:00:03.8]} 60. Ke3 {[%clk 0:00:23.3]}
60... Kg7 {[%clk 0:00:03.9]} 61. Nc7 {[%clk 0:00:22.4]} 61... Re4+ {[%clk
0:00:04]} 62. Kf3 {[%clk 0:00:22.4]} 62... Nxc7 {[%clk 0:00:03.8]} 63. Rxa7
{[%clk 0:00:23]} 63... Ne6 {[%clk 0:00:04.1]} 64. Rb7 {[%clk 0:00:23.4]} 64...
Rxe5 {[%clk 0:00:04.5]} 65. Rb6 {[%clk 0:00:23.1]} 65... g5 {[%clk 0:00:04.5]}
66. Rb8 {[%clk 0:00:22.9]} 66... Kf6 {[%clk 0:00:04.6]} 67. Ra8 {[%clk
0:00:23.8]} 67... Rc5 {[%clk 0:00:04.5]} 68. Ra1 {[%clk 0:00:24.5]} 68... Rc3+
{[%clk 0:00:04.6]} 69. Kg2 {[%clk 0:00:25.4]} 69... b4 {[%clk 0:00:05]} 70. Re1
{[%clk 0:00:24.1]} 70... b3 {[%clk 0:00:05.4]} 71. Rf1 {[%clk 0:00:25]} 71... b2
{[%clk 0:00:05.7]} 72. Kh1 {[%clk 0:00:23.8]} 72... Rc1 {[%clk 0:00:05.9]} 73.
Kh2 {[%clk 0:00:22.8]} 73... Rxf1 {[%clk 0:00:05.6]} 74. Kg3 {[%clk 0:00:23.7]}
74... Rg1+ {[%clk 0:00:05.9]} 75. Kh2 {[%clk 0:00:24]} 75... Rg2+ {[%clk
0:00:03.8]} 76. Kxg2 {[%clk 0:00:23.1]} 76... b1=Q {[%clk 0:00:03.8]} 77. Kg3
{[%clk 0:00:24]} 77... Qd3+ {[%clk 0:00:03.2]} 78. Kh2 {[%clk 0:00:24.9]} 78...
Nf4 {[%clk 0:00:03.6]} 79. Kg1 {[%clk 0:00:25.8]} 79... Qe3+ {[%clk 0:00:03.7]}
80. Kh1 {[%clk 0:00:26.7]} 80... Qf3+ {[%clk 0:00:04]} 81. Kh2 {[%clk
0:00:27.6]} 81... Qg2# {[%clk 0:00:04.6]} 0-1